fUSD/lending_fUSD_20260323
["ID","MTS","AMOUNT","RATE_DAILY","PERIOD"]
[408782856,1774251033351,-38049.18460904,0.00013573,2]
[408782857,1774251033364,-4879.23246567,0.00013573,2]
[408782858,1774251033376,-3807.81554455,0.00013573,2]
[408782859,1774251033387,-12054.20965469,0.00013573,2]
[408782860,1774251033398,-4319.12123826,0.00013573,2]
[408782865,1774251038616,-706.81934398,0.00013573,2]
[408782866,1774251038629,-4826.1713944,0.00013573,2]
[408782867,1774251038641,-414.12197717,0.00013573,2]
[408782868,1774251038652,-1129.66018695,0.00013573,2]
[408782869,1774251038662,-1115.69694317,0.00013573,2]
[408782870,1774251038682,-475.2949715,0.00013573,2]
[408782871,1774251038700,-450.14744717,0.00013573,2]
[408782872,1774251038711,-10872.26460037,0.00013573,2]
[408782873,1774251040227,-150.0,0.00011712,30]
[408782874,1774251040237,-234.01,0.00012427,30]
[408782875,1774251040248,-461.38777926,0.00013573,2]
[408782876,1774251040259,-307.39978843,0.00013573,2]
[408782877,1774251040614,-351.01,0.00013141,30]
[408782878,1774251040624,-19648.74500897,0.00013573,2]
[408782902,1774251047599,-902.4970347,0.00013573,2]
[408782903,1774251047629,-88516.72404849,0.00013573,2]
[408782904,1774251047641,-515.642885,0.00013573,2]
[408782905,1774251047651,-733.08389315,0.00013573,2]
[408782906,1774251047689,-525.568331,0.00013573,2]
[408782910,1774251392709,150.0,0.000154,120]
[408782911,1774251507081,-300.61064699,0.00011677,2]
[408782912,1774251507104,-158.21389987,0.00012364,2]
[408782913,1774251507127,-541.17545314,0.00012464,2]
[408782914,1774251508768,-1000.0,0.00012464,2]
[408782915,1774251511210,-1000.0,0.00012464,2]
[408782916,1774251512119,-1000.0,0.00012464,2]
[408782917,1774251513230,-1000.0,0.00012464,2]
[408782918,1774251513528,-458.82454686,0.00012464,2]
[408782919,1774251513549,-300.0,0.00012464,2]
[408782920,1774251513571,-200.0,0.000128,4]
[408782921,1774251513597,-41.17545314,0.00012835,2]
[408782922,1774251513863,-117.03844672,0.00012835,2]
[408782923,1774251513886,-500.0,0.000129,4]
[408782924,1774251529565,-1000.0,0.00013049,2]
[408782925,1774251531628,-500.0,0.00013049,2]
[408782926,1774251554833,-250.0,0.00013155,2]
[408782927,1774251554855,-150.0,0.000132,2]
[408782928,1774251554880,-600.0,0.00013261,2]
[408782929,1774251556578,-17.38,0.00013261,2]
[408782930,1774251556602,-303.96232386,0.00013272,2]
[408782931,1774251578131,150.0,0.000153,120]
[408782941,1774251764487,150.0,0.000153,120]
[408782942,1774251798461,454.04716986,0.00017,60]
[408782945,1774251950921,150.0,0.000153,120]
[408782948,1774252138300,150.0,0.000153,120]
[408782977,1774252232114,-507.104,9.755e-05,2]
[408782978,1774252232126,-692.896,9.755e-05,2]
[408782979,1774252232136,-300.0,9.755e-05,2]
[408782980,1774252232145,-15.85400001,9.755e-05,2]
[408782981,1774252232180,-1184.14599999,9.755e-05,2]
[408782982,1774252232190,-170.21,9.756e-05,2]
[408782983,1774252232200,-2947.09608463,9.756e-05,2]
[408782984,1774252232212,-2425.48349615,9.756e-05,2]
[408782985,1774252232333,-136252.13333731,9.756e-05,2]
[408782986,1774252232344,-7129.26894241,9.756e-05,2]
[408783002,1774252232829,-2229.04774699,0.0001053,2]
[408783003,1774252232840,-303.96232386,0.00010631,2]
[408783004,1774252232850,-231.4726586,0.00010632,2]
[408783005,1774252232859,-300.0,0.00010731,2]
[408783006,1774252232870,-394.0,0.00010731,2]
[408783007,1774252232879,-1680.0,0.00010731,2]
[408783008,1774252232889,-250.0,0.00010732,2]
[408783009,1774252232898,-5000.0,0.00010732,2]
[408783010,1774252232907,-194.69059823,0.00010732,2]
[408783011,1774252232917,-250.0,0.00010732,2]
[408783012,1774252232927,-300.0,0.00011795,2]
[408783013,1774252232937,-475.49550752,0.00011804,2]
[408783014,1774252232948,-1875.50449248,0.00011804,2]
[408783015,1774252232958,-166.66,0.00011899,2]
[408783016,1774252232968,-231.47265859,0.00011956,2]
[408783017,1774252232978,-166.66,0.00012149,2]
[408783018,1774252232987,-166.66,0.000124,2]
[408783019,1774252232997,-250.0,0.00012452,2]
[408783020,1774252233006,-150.0,0.000126,2]
[408783021,1774252233016,-166.66,0.0001265,2]
[408783022,1774252233026,-1200.0,0.000127,4]
[408783023,1774252233036,-2400.0,0.000128,4]
[408783024,1774252233046,-3700.0,0.000129,4]
[408783025,1774252233056,-166.66,0.00012901,2]
[408783026,1774252233065,-3292.0,0.00012984,2]
[408783027,1774252233075,-250.0,0.00013,2]
[408783028,1774252233084,-166.66,0.00013151,2]
[408783029,1774252233093,-3124.06601251,0.00013173,2]
[408783030,1774252233103,-765.577542,0.0001318,2]
[408783031,1774252233112,-186.39347313,0.00013224,2]
[408783032,1774252233121,-74475.21507075,0.00013273,2]
[408783037,1774252239380,-370.30840488,0.00012212,2]
[408783038,1774252239389,-1516.09135222,0.00013224,2]
[408783039,1774252239398,-76760.75143783,0.00013273,2]
[408783040,1774252239429,-4129.53736937,0.00013273,2]
[408783041,1774252239440,-424.64610117,0.00013273,2]
[408783042,1774252239574,-351.5,0.00013273,2]
[408783043,1774252239585,-75571.14173838,0.00013273,2]
[408783044,1774252240534,-153655.47236451,0.00013273,2]
[408783045,1774252240802,-2111710.96561799,0.00013273,2]
[408783046,1774252240811,-500.0,0.00013273,2]
[408783047,1774252240822,-500.2179357,0.00013273,2]
[408783048,1774252240832,-598.58411617,0.00013273,2]
[408783049,1774252240841,-500.0,0.00013273,2]
[408783050,1774252240850,-501.74441407,0.00013273,2]
[408783051,1774252240859,-231.47265859,0.0001328,2]
[408783052,1774252240869,-1032322.47537904,0.00013288,2]
[408783053,1774252240960,-56723.80579921,0.00013288,2]
[408783054,1774252240973,-46083.07634884,0.00013288,2]
[408783055,1774252240984,-36132.87203757,0.00013288,2]
[408783076,1774252246189,-47696.83346897,0.00013288,2]
[408783077,1774252246209,-377.0455958,0.00013288,2]
[408783078,1774252246227,-719.249995,0.00013288,2]
[408783079,1774252246247,-966.59,0.00013288,2]
[408783080,1774252246448,-2865.34320107,0.00013288,2]
[408783087,1774252325627,150.0,0.000153,120]
[408783089,1774252513516,150.0,0.000153,120]
[408783090,1774252704373,150.0,0.000153,120]
[408783109,1774252891813,150.0,0.000153,120]
[408783110,1774253078732,150.0,0.000153,120]
[408783123,1774253432338,-150.0,0.00011332,30]
[408783124,1774253432347,-382.82685681,0.00011507,2]
[408783125,1774253432359,-912.10314319,0.00011507,2]
[408783126,1774253432370,-284.0,0.00011507,2]
[408783127,1774253432379,-2000.0,0.00012018,2]
[408783128,1774253432388,-215.3,0.00012024,30]
[408783129,1774253432398,-219.77627619,0.00012028,2]
[408783130,1774253432407,-176.92,0.00012128,2]
[408783131,1774253432416,-150.0,0.00012281,2]
[408783132,1774253432426,-156.73,0.00012332,2]
[408783133,1774253432435,-2853.67,0.00012358,2]
[408783134,1774253432444,-1200.0,0.00012383,2]
[408783135,1774253432454,-1852.42,0.00012384,2]
[408783136,1774253432463,-300.0,0.00012412,2]
[408783137,1774253432473,-657.0,0.00012413,2]
[408783138,1774253432483,-150.0,0.00012418,2]
[408783181,1774253432883,-47134.80629936,0.00012419,2]
[408783184,1774253432899,-12854.66032977,0.00012419,2]
[408783187,1774253432918,-21938.37940498,0.00012419,2]
[408783189,1774253432930,-438.09910747,0.00012419,2]
[408783194,1774253432966,-2328.60485842,0.00012419,2]
[408783196,1774253432976,-200.0,0.00012435,2]
[408783198,1774253432986,-500.0,0.00012488,2]
[408783200,1774253432996,-198.7,0.00012504,2]
[408783202,1774253433007,-322.94,0.00012715,30]
[408783204,1774253433016,-753.0,0.00012816,2]
[408783206,1774253433026,-500.0,0.00012986,2]
[408783208,1774253433035,-396.75514158,0.00013,2]
[408783210,1774253433046,-150.67485842,0.00013,2]
[408783212,1774253433055,-268.53181064,0.00013073,2]
[408783214,1774253433065,-1884.02015201,0.00013172,2]
[408783339,1774253439192,-3261.1159128,0.00013172,2]
[408783351,1774253439299,-1510.03,0.00012686,2]
[408783353,1774253439308,-7392.83339774,0.00013172,2]
[408783355,1774253439318,-2500.0,0.00013173,2]
[408783357,1774253439327,-517.4885392,0.00013173,2]
[408783359,1774253439336,-155.0,0.0001318,2]
[408783361,1774253439345,-32987.9588,0.00013188,2]
[408783364,1774253439363,-1000.0,0.00013188,2]
[408783365,1774253439374,-154.0,0.000132,2]
[408783366,1774253439384,-155.43,0.000132,2]
[408783367,1774253439394,-500.0,0.00013265,2]
[408783368,1774253439403,-201.9121554,0.00013265,2]
[408783369,1774253439412,-151.0,0.00013265,2]
[408783370,1774253439423,-151.0,0.00013265,2]
[408783371,1774253439432,-151.0,0.00013265,2]
[408783372,1774253439442,-151.0,0.00013265,2]
[408783373,1774253439451,-151.0,0.00013265,2]
[408783374,1774253439461,-151.0,0.00013265,2]
[408783375,1774253439470,-500.0,0.00013265,2]
[408783376,1774253439479,-151.0,0.00013265,2]
[408783377,1774253439488,-500.0,0.00013265,2]
[408783378,1774253439498,-151.0,0.00013265,2]
[408783379,1774253439507,-500.0,0.00013265,2]
[408783380,1774253439516,-151.0,0.00013265,2]
[408783381,1774253439526,-151.0,0.00013265,2]
[408783382,1774253439536,-151.0,0.00013265,2]
[408783383,1774253439545,-151.0,0.00013265,2]
[408783384,1774253439555,-151.0,0.00013265,2]
[408783386,1774253439564,-1025.7954584,0.0001327,2]
[408783387,1774253439573,-171.3704605,0.0001327,2]
[408783389,1774253439583,-500.0,0.00013272,2]
[408783391,1774253439593,-150.0,0.00013272,2]
[408783393,1774253439602,-500.11896456,0.00013273,2]
[408783395,1774253439612,-500.39306299,0.00013273,2]
[408783397,1774253439621,-151.0,0.0001337,2]
[408783400,1774253439632,-150.0,0.000134,2]
[408783402,1774253439641,-155.0,0.000134,2]
[408783404,1774253439651,-430.59,0.00013407,30]
[408783406,1774253439660,-3240.0,0.00013425,2]
[408783408,1774253439669,-4713.35110596,0.00013429,2]
[408783410,1774253439683,-7774.72805526,0.00013475,2]
[408783412,1774253439695,-917.99289387,0.00013475,2]
[408783416,1774253439719,-3845.24851341,0.00013475,2]
[408783418,1774253439728,-13577.5,0.00013478,2]
[408783420,1774253439737,-255.0,0.00013511,2]
[408783422,1774253439746,-2000.0,0.0001352,2]
[408783424,1774253439756,-168.9958298,0.00013529,2]
[408783426,1774253439766,-2385.8499862,0.00013529,2]
[408783428,1774253439776,-48586.70098092,0.00013588,2]
[408783430,1774253439785,-1680.0,0.00013622,2]
[408783432,1774253439794,-500.0,0.00013698,2]
[408783434,1774253439804,-500.0,0.00013698,2]
[408783436,1774253439813,-531.69294514,0.00013698,2]
[408783437,1774253439824,-500.0,0.00013698,2]
[408783439,1774253439833,-500.82838493,0.00013698,2]
[408783440,1774253439842,-500.0,0.00013698,2]
[408783441,1774253439851,-500.0,0.00013698,2]
[408783442,1774253439861,-500.0,0.00013698,2]
[408783443,1774253439871,-500.0,0.00013698,2]
[408783444,1774253439880,-500.0,0.00013698,2]
[408783445,1774253439890,-500.0,0.00013698,2]
[408783446,1774253439904,-500.0,0.00013698,2]
[408783447,1774253439914,-500.0,0.00013698,2]
[408783448,1774253439924,-500.0,0.00013698,2]
[408783449,1774253439933,-500.0,0.00013698,2]
[408783450,1774253439944,-184.70802304,0.00013698,2]
[408783451,1774253439953,-500.0,0.00013698,2]
[408783452,1774253439963,-493.24956712,0.00013698,2]
[408783453,1774253439972,-500.0,0.00013698,2]
[408783454,1774253439982,-500.0,0.00013698,2]
[408783455,1774253439992,-500.0,0.00013698,2]
[408783456,1774253440001,-500.0,0.00013698,2]
[408783457,1774253440011,-500.0,0.00013698,2]
[408783458,1774253440020,-500.0,0.00013698,2]
[408783459,1774253440030,-500.0,0.00013698,2]
[408783460,1774253440039,-500.0,0.00013698,2]
[408783461,1774253440049,-500.0,0.00013698,2]
[408783462,1774253440059,-500.0,0.00013698,2]
[408783463,1774253440068,-528.89491096,0.00013698,2]
[408783464,1774253440078,-500.0,0.00013698,2]
[408783465,1774253440087,-500.0,0.00013698,2]
[408783466,1774253440096,-500.0,0.00013698,2]
[408783467,1774253440106,-500.0,0.00013698,2]
[408783468,1774253440116,-385.20060111,0.00013698,2]
[408783469,1774253440126,-500.0,0.00013698,2]
[408783470,1774253440138,-500.0,0.00013698,2]
[408783471,1774253440148,-500.0,0.00013698,2]
[408783472,1774253440158,-500.0,0.00013698,2]
[408783473,1774253440168,-389.65074657,0.00013698,2]
[408783474,1774253440179,-500.0,0.00013698,2]
[408783475,1774253440189,-500.0,0.00013698,2]
[408783476,1774253440198,-500.0,0.00013698,2]
[408783477,1774253440210,-500.0,0.00013698,2]
[408783478,1774253440220,-507.66532592,0.00013698,2]
[408783479,1774253440230,-500.0,0.00013698,2]
[408783480,1774253440240,-500.0,0.00013698,2]
[408783481,1774253440250,-500.0,0.00013698,2]
[408783482,1774253440260,-500.0,0.00013698,2]
[408783483,1774253440270,-515.16317389,0.00013698,2]
[408783484,1774253440280,-500.0,0.00013698,2]
[408783485,1774253440290,-500.0,0.00013698,2]
[408783486,1774253440299,-500.0,0.00013698,2]
[408783487,1774253440308,-500.0,0.00013698,2]
[408783488,1774253440318,-500.0,0.00013698,2]
[408783489,1774253440328,-500.0,0.00013698,2]
[408783490,1774253440338,-490.0,0.00013698,2]
[408783491,1774253440348,-500.0,0.00013698,2]
[408783492,1774253440357,-500.0,0.00013698,2]
[408783493,1774253440367,-500.0,0.00013698,2]
[408783494,1774253440376,-500.0,0.00013698,2]
[408783495,1774253440385,-500.0,0.00013698,2]
[408783496,1774253440395,-500.0,0.00013698,2]
[408783497,1774253440405,-500.0,0.00013698,2]
[408783498,1774253440414,-500.0,0.00013698,2]
[408783499,1774253440424,-500.0,0.00013698,2]
[408783500,1774253440433,-500.0,0.00013698,2]
[408783501,1774253440443,-500.0,0.00013698,2]
[408783502,1774253440453,-500.0,0.00013698,2]
[408783503,1774253440467,-500.0,0.00013698,2]
[408783504,1774253440477,-500.0,0.00013698,2]
[408783505,1774253440487,-500.0,0.00013698,2]
[408783506,1774253440497,-500.0,0.00013698,2]
[408783507,1774253440508,-500.0,0.00013698,2]
[408783508,1774253440518,-500.0,0.00013698,2]
[408783510,1774253440528,-500.0,0.00013698,2]
[408783511,1774253440537,-600.7953128,0.00013698,2]
[408783512,1774253440547,-500.0,0.00013698,2]
[408783513,1774253440557,-500.0,0.00013698,2]
[408783514,1774253440567,-500.0,0.00013698,2]
[408783515,1774253440577,-500.0,0.00013698,2]
[408783516,1774253440586,-382.64217432,0.00013698,2]
[408783517,1774253440596,-500.0,0.00013698,2]
[408783518,1774253440606,-500.0,0.00013698,2]
[408783519,1774253440615,-500.0,0.00013698,2]
[408783520,1774253440625,-500.0,0.00013698,2]
[408783521,1774253440635,-4229.2375234,0.00013698,2]
[408783522,1774253440645,-935.58,0.00013699,2]
[408783523,1774253440655,-200.0,0.00013699,2]
[408783524,1774253440664,-4713.35110596,0.00013704,2]
[408783525,1774253440674,-259.77,0.00013715,2]
[408783526,1774253440683,-511.35907537,0.00013721,2]
[408783527,1774253440693,-510.02011613,0.00013721,2]
[408783528,1774253440702,-491.85110422,0.00013721,2]
[408783529,1774253440712,-513.55432759,0.00013721,2]
[408783530,1774253440723,-428.34876633,0.00013735,2]
[408783531,1774253440733,-12537.96946254,0.00013778,2]
[408783532,1774253440742,-152.0,0.00013797,3]
[408783533,1774253440753,-156.73,0.00013873,2]
[408783534,1774253440763,-979.16666667,0.00013897,2]
[408783535,1774253440773,-160.0,0.00013897,2]
[408783536,1774253440782,-365.49730851,0.00013904,2]
[408783537,1774253440792,-500.0,0.00013945,2]
[408783538,1774253440802,-4713.35110596,0.00013978,2]
[408783539,1774253440811,-501.0,0.00014,2]
[408783540,1774253440822,-152.0,0.00014004,4]
[408783541,1774253440833,-155.0,0.00014045,2]
[408783542,1774253440843,-578.20924308,0.00014046,2]
[408783543,1774253440853,-8882.6885148,0.00014046,2]
[408783544,1774253440862,-500.0,0.00014046,2]
[408783545,1774253440872,-500.0,0.00014046,2]
[408783546,1774253440881,-500.0,0.00014046,2]
[408783547,1774253440891,-345.13904659,0.00014046,2]
[408783548,1774253440900,-670.58624095,0.00014046,2]
[408783549,1774253440910,-500.0,0.00014046,2]
[408783550,1774253440920,-500.0,0.00014046,2]
[408783551,1774253440931,-174.61919141,0.00014046,2]
[408783552,1774253440940,-500.0,0.00014046,2]
[408783553,1774253440950,-500.0,0.00014046,2]
[408783554,1774253440960,-500.0,0.00014046,2]
[408783555,1774253440970,-500.0,0.00014046,2]
[408783556,1774253440980,-500.0,0.00014046,2]
[408783557,1774253440990,-500.0,0.00014046,2]
[408783558,1774253441000,-500.0,0.00014046,2]
[408783559,1774253441010,-500.0,0.00014046,2]
[408783560,1774253441024,-500.0,0.00014046,2]
[408783561,1774253441034,-500.0,0.00014046,2]
[408783562,1774253441044,-500.0,0.00014046,2]
[408783563,1774253441055,-12537.96946254,0.00014081,2]
[408783564,1774253441064,-1100.0,0.00014082,2]
[408783565,1774253441075,-538.24,0.00014099,30]
[408783566,1774253441084,-328.65947505,0.00014101,2]
[408783567,1774253441094,-500.0,0.00014101,2]
[408783568,1774253441104,-500.0,0.00014156,2]
[408783569,1774253441114,-610.9899402,0.00014165,2]
[408783570,1774253441124,-610.9899402,0.00014165,2]
[408783571,1774253441139,-152.0,0.0001421,5]
[408783572,1774253441149,-500.0,0.00014211,2]
[408783573,1774253441159,-4713.35110596,0.00014253,2]
[408783574,1774253441171,-500.0,0.00014266,2]
[408783575,1774253441180,-500.0,0.00014321,2]
[408783576,1774253441190,-1200.0,0.00014356,2]
[408783577,1774253441200,-500.0,0.00014376,2]
[408783578,1774253441210,-12537.96946254,0.00014384,2]
[408783579,1774253441220,-1568.0,0.000144,2]
[408783580,1774253441230,-186.437016,0.00014404,7]
[408783581,1774253441240,-435.019704,0.00014404,7]
[408783582,1774253441249,-194.580167,0.00014404,7]
[408783583,1774253441259,-264.319359,0.00014404,7]
[408783584,1774253441269,-220.691327,0.00014404,7]
[408783585,1774253441279,-236.58611,0.00014404,7]
[408783586,1774253441289,-311.577693,0.00014404,7]
[408783587,1774253441298,-152.0,0.00014416,6]
[408783588,1774253441308,-500.0,0.00014431,2]
[408783589,1774253441318,-500.0,0.00014486,2]
[408783590,1774253441327,-4713.35110596,0.00014527,2]
[408783591,1774253441337,-500.0,0.00014541,2]
[408783592,1774253441347,-198.7,0.00014568,2]
[408783593,1774253441357,-181.08010149,0.00014594,2]
[408783594,1774253441367,-500.0,0.00014596,2]
[408783595,1774253441377,-5000.0,0.00014598,2]
[408783596,1774253441387,-152.0,0.00014622,7]
[408783597,1774253441396,-500.0,0.00014651,2]
[408783598,1774253441405,-12537.96946254,0.00014688,2]
[408783599,1774253441415,-150.0,0.00014698,2]
[408783600,1774253441425,-150.0,0.00014698,2]
[408783601,1774253441436,-150.116,0.00014698,2]
[408783602,1774253441446,-150.0,0.00014698,2]
[408783603,1774253441455,-150.0,0.00014698,2]
[408783604,1774253441465,-150.0,0.00014698,2]
[408783605,1774253441475,-150.101,0.00014698,2]
[408783606,1774253441484,-150.0,0.00014698,2]
[408783607,1774253441493,-150.062,0.00014698,2]
[408783608,1774253441503,-1345.0,0.00014698,2]
[408783609,1774253441512,-163.64,0.00014698,2]
[408783610,1774253441522,-1044.0,0.00014698,2]
[408783611,1774253441531,-3515.0,0.00014698,2]
[408783612,1774253441540,-274.634,0.00014698,2]
[408783613,1774253441550,-1263.621,0.00014698,2]
[408783614,1774253441559,-926.587,0.00014698,2]
[408783615,1774253441569,-1299.352,0.00014698,2]
[408783616,1774253441583,-2466.0,0.00014698,2]
[408783617,1774253441592,-6008.0,0.00014698,2]
[408783618,1774253441602,-150.4481,0.000147,2]
[408783619,1774253441612,-433.0,0.00014703,2]
[408783620,1774253441622,-500.0,0.00014706,2]
[408783621,1774253441631,-1568.0,0.0001472,2]
[408783622,1774253441641,-161.0,0.0001472,2]
[408783623,1774253441650,-3584.0,0.00014778,2]
[408783624,1774253441660,-645.89,0.0001479,30]
[408783625,1774253441669,-4713.35110596,0.00014802,2]
[408783626,1774253441679,-152.0,0.00014828,8]
[408783627,1774253441688,-501.0,0.00014868,2]
[408783628,1774253441697,-312.0,0.00014934,2]
[408783629,1774253441707,-150.0,0.00014954,2]
[408783630,1774253441716,-150.0,0.00014954,2]
[408783631,1774253441725,-150.0,0.00014954,2]
[408783632,1774253441735,-2351.0,0.00014984,2]
[408783633,1774253441744,-12537.96946254,0.00014991,2]
[408783634,1774253441754,-1003.73,0.00015,2]
[408783635,1774253441764,-300.0,0.00015,2]
[408783636,1774253441773,-312.0,0.00015014,2]
[408783637,1774253441783,-2000.0,0.00015023,2]
[408783638,1774253441792,-152.0,0.00015034,9]
[408783639,1774253441802,-2804.0,0.0001504,2]
[408783640,1774253441812,-2804.0,0.0001504,2]
[408783641,1774253441822,-1568.0,0.0001504,2]
[408783642,1774253441831,-224.502071,0.00015068,2]
[408783643,1774253441842,-357.55,0.00015068,2]
[408783644,1774253441852,-4597.96675093,0.00015076,2]
[408783645,1774253441867,-115.38435503,0.00015076,2]
[408783646,1774253441876,-367.0,0.00015091,5]
[408783647,1774253441886,-378.46632711,0.00015091,5]
[408783648,1774253441902,-196.53367289,0.00015091,5]
[408783649,1774253441911,-187.78006525,0.00015142,2]
[408783650,1774253441920,-174.52626186,0.00015204,2]
[408783651,1774253442184,-1403.83747071,0.00014271,2]
[408783652,1774253442250,-106.19252929,0.00014271,2]
[408783653,1774253442262,-415.0,0.00014698,2]
[408783654,1774253442272,-137.47373814,0.00015204,2]
[408783655,1774253442282,-10000.0,0.00015205,2]
[408783656,1774253442292,-312.0,0.00015207,2]
[408783657,1774253442302,-152.0,0.0001524,10]
[408783658,1774253442312,-305.4949701,0.00015246,7]
[408783659,1774253442322,-980.0,0.00015291,2]
[408783660,1774253442915,-12537.96946254,0.00015294,2]
[408783661,1774253442942,-2709.0,0.000153,7]
[408783662,1774253442955,-159.0,0.000153,3]
[408783663,1774253442967,-167.0,0.000153,3]
[408783664,1774253442978,-312.0,0.00015306,2]
[408783665,1774253442988,-4713.35110596,0.00015351,2]
[408783666,1774253442999,-2804.0,0.0001536,2]
[408783667,1774253443009,-161.0,0.0001536,2]
[408783668,1774253443019,-980.0,0.00015365,2]
[408783669,1774253443029,-1503.674636,0.00015366,2]
[408783670,1774253443039,-440.81,0.00015388,2]
[408783671,1774253443048,-312.0,0.00015397,2]
[408783672,1774253443059,-156.73,0.00015415,2]
[408783673,1774253443069,-2117.638,0.00015433,2]
[408783674,1774253443079,-152.0,0.00015446,11]
[408783675,1774253443089,-1100.0,0.00015452,2]
[408783676,1774253443099,-753.54,0.00015482,30]
[408783677,1774253443110,-170.16,0.00015495,2]
[408783678,1774253443120,-1300.0,0.000155,5]
[408783679,1774253443133,-1987.49,0.00015507,2]
[408783680,1774253443143,-12537.96946254,0.00015597,2]
[408783681,1774253443153,-240.84,0.00015599,2]
[408783682,1774253443163,-2600.0,0.000156,5]
[408783683,1774253443175,-980.0,0.00015616,2]
[408783684,1774253443185,-4713.35110596,0.00015625,2]
[408783686,1774253443194,-152.0,0.00015652,12]
[408783687,1774253443204,-281.41,0.00015671,2]
[408783688,1774253443215,-161.0,0.0001568,2]
[408783689,1774253443225,-164.0,0.0001568,2]
[408783690,1774253443235,-766.18730609,0.0001568,2]
[408783691,1774253443244,-2801.0,0.0001568,2]
[408783692,1774253443254,-1568.0,0.0001568,2]
[408783693,1774253443264,-194.72792766,0.0001569,2]
[408783694,1774253443274,-988.0,0.000157,2]
[408783695,1774253443283,-3900.0,0.000157,5]
[408783696,1774253443293,-980.0,0.00015701,2]
[408783698,1774253443303,-483.0,0.00015711,5]
[408783700,1774253443313,-1200.0,0.00015726,2]
[408783702,1774253443322,-980.0,0.00015735,2]
[408783703,1774253443332,-501.0,0.00015737,3]
[408783704,1774253443342,-711.0,0.00015744,2]
[408783705,1774253443351,-612.0,0.00015744,2]
[408783706,1774253443362,-167.99,0.00015758,2]
[408783707,1774253443372,-5200.0,0.000158,5]
[408783708,1774253443382,-711.0,0.00015811,2]
[408783709,1774253443391,-238.15540996,0.00015814,2]
[408783710,1774253443401,-980.0,0.00015823,2]
[408783711,1774253443411,-150.0,0.00015834,2]
[408783712,1774253443421,-150.0,0.00015834,2]
[408783713,1774253443431,-150.0,0.00015834,2]
[408783714,1774253443440,-404.0788,0.0001584,2]
[408783715,1774253443450,-404.0788,0.0001584,2]
[408783716,1774253443460,-404.0788,0.0001584,2]
[408783717,1774253443470,-1510.03,0.00015857,2]
[408783718,1774253443479,-152.0,0.00015859,13]
[408783719,1774253443489,-711.0,0.00015859,2]
[408783720,1774253443499,-935.58,0.00015862,2]
[408783721,1774253443509,-980.0,0.00015864,2]
[408783722,1774253443519,-500.0,0.00015872,2]
[408783723,1774253443528,-200.0,0.00015872,2]
[408783724,1774253443538,-980.0,0.00015881,2]
[408783725,1774253443547,-2000.0,0.0001589,2]
[408783726,1774253443557,-1987.49,0.00015895,2]
[408783727,1774253443567,-12525.0,0.00015896,2]
[408783728,1774253443576,-11252.21084528,0.000159,2]
[408783729,1774253443591,-1285.75861726,0.000159,2]
[408783730,1774253443600,-2225.60085943,0.000159,5]
[408783731,1774253443612,-412.93410267,0.000159,5]
[408783737,1774253443878,-610.47380839,0.000159,5]
[408783738,1774253443890,-727.9181764,0.000159,5]
[408783739,1774253443902,-2623.07305311,0.000159,5]
[408783740,1774253443912,-4713.35110596,0.000159,2]
[408783741,1774253443921,-416.6182104,0.000159,2]
[408783742,1774253443930,-1010.72756814,0.000159,2]
[408783743,1774253443940,-237.93848185,0.000159,2]